Cogmind - Beta 17 @@@ ROGUE MODE // 2026.06.23 @ 03:06:05 Player: TheSkyeDoctor Result: Destroyed by G-47 Trooper with Particle Gun Performance ------------- Evolutions (2) 1000 Regions Visited (3) 600 Robots Destroyed (35) 175 Value Destroyed (776) 776 Prototype IDs (1) 20 Alien Tech Used (0) 0 Bonus (4990) 4990 TOTAL SCORE: 7561 Bonus ------- Prayed to X0-1V1 5000 Friendly Fire -10 Cogmind --------- Core Integrity 0/450 Matter 28/300 Energy 900/900 System Corruption 0% Temperature Cool (9) Movement Core (350) Ox6 Location -8/Materials Parts ------- > --- POWER (1) -------- (None) > --- PROPULSION (2) --- (None) > --- UTILITY (4) ------ Large Storage Unit X0-1V1's Piety Tracker > --- WEAPON (4) ------- (None) > --- INVENTORY (15) --- Heat Sink Seismic Detector EM Pulse Gun Medium Laser Peak State ------------ > --- POWER ------------ Light Ion Engine > --- PROPULSION ------- Light Treads Light Treads > --- UTILITY ---------- Large Storage Unit X0-1V1's Piety Tracker > --- WEAPON ----------- Beam Cannon Battle Rifle > --- INVENTORY -------- Compact Wheel Heat Sink Seismic Detector Targeting Computer EM Pulse Gun Medium Laser Light Assault Rifle Grenade Launcher [Rating: 20] Favorites ----------- Power Light Ion Engine Engine Light Ion Engine Propulsion Light Treads Treads Light Treads Wheel Compact Wheel Utility Large Storage Unit Device X0-1V1's Piety Tracker Storage Large Storage Unit Processor Targeting Computer Weapon Light Assault Rifle Energy Gun EM Pulse Gun Energy Cannon Beam Cannon Ballistic Gun Light Assault Rifle Launcher Grenade Launcher Build | -11 -10 -10 -8 ------- Run | Yrd Mat Sub Mat Slots Evolved 4 | . . . 4 Power . | . . . . Propulsion . | . . . . Utility 2 | . . . 2 Weapon 2 | . . . 2 Parts Attached 23 | 7 8 5 3 Power 2 | 1 1 . . Engine 2 | 1 1 . . Core . | . . . . Reactor . | . . . . Propulsion 4 | 2 1 1 . Treads 3 | 2 1 . . Leg . | . . . . Wheel 1 | . . 1 . Hover . | . . . . Flight . | . . . . Utility 7 | 2 3 . 2 Device 3 | 1 1 . 1 Storage 3 | 1 2 . . Processor 1 | . . . 1 Hackware . | . . . . Protection . | . . . . Artifact . | . . . . Weapon 10 | 2 3 4 1 Energy Gun 2 | . 2 . . Energy Cannon 1 | . 1 . . Ballistic Gun 5 | 2 . 3 . Ballistic Cannon . | . . . . Launcher 2 | . . 1 1 Special Weapon . | . . . . Impact Weapon . | . . . . Slashing Weapon . | . . . . Piercing Weapon . | . . . . Special Melee Weapon . | . . . . Unidentified Prototypes 1 | . 1 . . Parts Lost 14 | . 3 8 3 Power 2 | . 1 1 . Propulsion 4 | . 1 3 . Utility 1 | . . . 1 Weapon 7 | . 1 4 2 Highest Loss Streak 4 | . 3 4 2 To Critical Strikes . | . . . . Average Backups 5 | 2 4 6 6 Power . | . . . . Propulsion . | . 1 . . Utility 1 | . . 3 2 Weapon 2 | . 2 3 3 Tool/Special . | . . . . Unused Backups 2 | . . . 2 Power . | . . . . Propulsion . | . . . . Utility 2 | . . . 2 Weapon . | . . . . Tool/Special . | . . . . Average Slot Usage (%) 76 | . 99 74 32 Engine 7 | . 13 4 . Treads 16 | . 27 12 . Wheel 1 | . . 4 . Device 12 | . 14 14 8 Storage 12 | . 14 14 9 Processor 1 | . . . 7 Energy Gun 2 | . 5 . . Energy Cannon 4 | . 3 6 . Ballistic Gun 14 | . 18 13 7 Launcher 1 | . . 4 . Peak Build Rating 20 | 7 19 20 17 Average Rating 12 | 5 7 18 15 On Entrance 10 | . 7 19 16 Avg Prop Armor Cover (%) . | . . . . Naked Turns . | . . . . Heaviest Build 29 | 12 28 29 25 Greatest Support 40 | 40 40 40 3 Greatest Overweight (x) 8 | 3 . 8 8 Average Overweight (x) 1 | . . 1 7 Largest Inventory Capacity 15 | 8 15 15 15 Average Capacity 12 | 7 10 15 15 Most Carried 8 | 3 7 8 7 Average Carried 5 | 2 4 6 6 Final Capacity 15 | 8 15 15 15 Final Carried 7 | 3 7 6 4 Class Distribution -------------------- 100% | Mutant Dominant Class ---------------- Mutant | -10/Materials Mutant | -10/Subcaves Mutant | -8/Materials Resources | -11 -10 -10 -8 ----------- Run | Yrd Mat Sub Mat Matter Collected 770 | 314 262 171 23 Remotely . | . . . . Salvage Created 956 | 139 513 281 23 Parts 66 | 6 33 27 . Haulers Intercepted 2 | . 2 . . Recyclers Shooed 2 | 1 1 . . Parts Field Recycled . | . . . . Retrieved Matter . | . . . . Parts Self-Destructed 11 | . . 11 . Prevented . | . . . . Parts Restored . | . . . . Kills | -11 -10 -10 -8 ------- Run | Yrd Mat Sub Mat Combat Hostiles Destroyed 27 | . 12 14 1 Guns 14 | . 10 4 . Cannons 5 | . 2 3 . AOE 8 | . . 7 1 Classes Destroyed 8 | 2 5 1 . Builder 1 | . 1 . . Tunneler 2 | 2 . . . Hauler 2 | . 2 . . Recycler 1 | 1 . . . Watcher 2 | . 2 . . Swarmer 11 | . 5 6 . Grunt 8 | . 7 . 1 Subdweller 8 | . . 8 . Best Kill Streak 3 | 2 3 3 1 Combat Bots Only 3 | . 3 3 1 Max Kills in Single Turn 3 | 1 1 3 1 Gunslinging . | . . . . Exploded 2 | . . 2 1 Melee . | . . . . Uniques/NPCs Destroyed . | . . . . Combat | -11 -10 -10 -8 -------- Run | Yrd Mat Sub Mat Hostile Shots Fired 244 | . 100 44 100 Missed 67 | . 21 14 32 Hits 177 | . 79 30 68 Projectile 177 | . 79 30 68 Critical Strikes 3 | . . 1 2 Damage Taken 2443 | . 786 596 1061 Core 962 | . 162 134 666 Absorbed by Shields . | . . . . Ignored by Resistances 41 | . . 35 6 Core Remaining (%) 77 | 100 . 54 . Volleys Fired 118 | 11 65 33 9 Largest 2 | 2 2 2 1 Hottest 110 | 40 110 90 33 Shots Fired 215 | 22 128 56 9 Gun 177 | 22 119 29 7 Cannon 18 | . 9 9 . Launcher 20 | . . 18 2 Special . | . . . . Kinetic 166 | 22 108 29 7 Thermal 21 | . 12 9 . Explosive 20 | . . 18 2 Electromagnetic 8 | . 8 . . Robot Hit Streak 15 | 3 15 12 7 Robot Miss Streak 4 | 2 4 2 3 Penetration Max . | . . . . Secondary Targets 1 | . 1 . . Max Gunslinging Chain 1 | . 1 . . Shots Hit Robots 128 | 10 83 28 7 Core Hits 58 | 4 31 21 2 Critical Kills . | . . . . Critical Parts Destroyed 1 | . 1 . . Critical Strikes 1 | . 1 . . Destroy 1 | . 1 . . Melee Attacks . | . . . . Impact . | . . . . Slashing . | . . . . Piercing . | . . . . Sneak Attacks . | . . . . Combat Hostiles . | . . . . Follow-up Attacks . | . . . . Damage Inflicted 2284 | 109 974 941 260 Guns 1278 | 109 826 229 114 Cannons 245 | . 123 122 . Explosions 758 | . 25 590 143 Melee . | . . . . Ramming 3 | . . . 3 Kinetic 1191 | 109 739 229 114 Thermal 308 | . 186 122 . Explosive 733 | . . 590 143 Electromagnetic 49 | . 49 . . Impact . | . . . . Slashing . | . . . . Piercing . | . . . . Highest Corruption 3 | . 3 3 . Average Corruption 2 | . 2 3 . Corruption Purged . | . . . . Corruption Blocked . | . . . . Effects 22 | . 14 8 . Message Errors 5 | . 4 1 . Matter Fused 4 | . 2 2 . Heat Flow Errors 3 | . 1 2 . Parts Fused 1 | . . 1 . Data Loss (minor) 4 | . 3 1 . Data Loss (major) 3 | . 2 1 . Alerts 2 | . 2 . . Overload Shots . | . . . . Overflow Damage 30 | . . 30 . Projectiles . | . . . . Explosions 30 | . . 30 . Melee . | . . . . Knockbacks . | . . . . Impact . | . . . . Kinetic . | . . . . Secondary . | . . . . Self-Inflicted Damage 79 | . . 46 33 Shots 5 | . . 3 2 Rammed 3 | . . . 3 Targets Rammed 3 | . . . 3 Kicked . | . . . . Crushed . | . . . . Highest Temperature 404 | . 404 202 2 Average Temperature 117 | . 128 70 2 Received Heat Transfer 912 | . 258 99 555 Siege Activations . | . . . . Martial Activations . | . . . . Shielding Activations . | . . . . Robots Disrupted . | . . . . Combat Hostiles . | . . . . Robots Corrupted . | . . . . Combat Hostiles . | . . . . Parts Fried . | . . . . Impact Corruptions . | . . . . Robots Melted . | . . . . Combat Hostiles . | . . . . Parts Melted 1 | . 1 . . Heat Transferred 679 | . 420 259 . Parts Sabotaged . | . . . . Parts Stolen . | . . . . Parts Stripped . | . . . . Power Chain Reactions 1 | . 1 . . Alert | -11 -10 -10 -8 ------- Run | Yrd Mat Sub Mat Maximum Alert Level . | . . . . Low Security (%) 100 | 100 100 . 100 Level 1 . | . . . . Level 2 . | . . . . Level 3 . | . . . . Level 4 . | . . . . Level 5 . | . . . . High Security . | . . . . Max Security . | . . . . Peak Influence 81 | 5 81 . 40 Initial . | . . . . Average 13 | . 20 . 1 Influence Increases 581 | 15 356 140 70 Destroy 0b10 Robot/C 380 | . 240 120 20 Destroy 0b10 Robot/NC 40 | 15 25 . . Destroy Leader 88 | . 68 20 . Successful Hack 23 | . 23 . . Destroy Structure 20 | . . . 20 Lose Combat Pursuer 30 | . . . 30 Influence Decreases 559 | 15 356 140 48 Time Decay 459 | 15 326 100 18 Lost Part 100 | . 30 40 30 Squads Dispatched 4 | . 4 . . Investigation 2 | . 2 . . Extermination . | . . . . Reinforcement 2 | . 2 . . Assault . | . . . . Garrison . | . . . . Intercept . | . . . . Searches Triggered . | . . . . Construction Impeded . | . . . . Haulers Reinforced . | . . . . Active Scanning Responses . | . . . . Cargo Convoy Interrupts . | . . . . Stealth | -11 -10 -10 -8 --------- Run | Yrd Mat Sub Mat Distress Signals 2 | . 1 . 1 Communications Jammed . | . . . . Distress Signals . | . . . . Times Spotted 48 | . 20 16 12 Peak Tracking Total 5 | . 3 3 5 Tactical Retreats 1 | . . . 1 Traps | -11 -10 -10 -8 ------- Run | Yrd Mat Sub Mat Traps Triggered 4 | . 4 . . Indirectly . | . . . . Trap Hack Attempts . | . . . . Triggered . | . . . . Disarmed . | . . . . Reprogrammed . | . . . . Reused . | . . . . Traps Extracted . | . . . . Installed . | . . . . Triggered . | . . . . Objects Rigged 1 | . 1 . . Machines | -11 -10 -10 -8 ---------- Run | Yrd Mat Sub Mat Machines Disabled . | . . . . Max in Single Turn . | . . . . Machines Repaired . | . . . . Machines Dismantled . | . . . . Machines Sabotaged . | . . . . Overloaded Fab Kills . | . . . . Hacking | -11 -10 -10 -8 --------- Run | Yrd Mat Sub Mat Machines Accessed 6 | . 4 1 1 Terminals 4 | . 4 . . Fabricators . | . . . . Repair Stations . | . . . . Recycling Units 1 | . . . 1 Scanalyzers . | . . . . Garrison Access . | . . . . Total Hacks 21 | . 12 4 5 Successful 15 | . 6 4 5 Failed 6 | . 6 . . Catastrophic 2 | . 2 . . Database Lockouts . | . . . . Manual 12 | . 12 . . Terminals 12 | . 12 . . Fabricators . | . . . . Repair Stations . | . . . . Recycling Units 5 | . . . 5 Scanalyzers . | . . . . Garrison Access . | . . . . Terminal Hacks 4 | . . 4 . Record 4 | . . 4 . Fabricator Hacks . | . . . . Repair Station Hacks . | . . . . Recycling Unit Hacks 5 | . . . 5 Recycle Component 2 | . . . 2 Process 1 | . . . 1 Report Inventory 1 | . . . 1 Retrieve Matter 1 | . . . 1 Scanalyzer . | . . . . Garrison Access Hacks . | . . . . Unauthorized Hacks 6 | . 6 . . Terminals 6 | . 6 . . Botnet 4 | . 4 . . Detonate 2 | . 2 . . Fabricators . | . . . . Repair Stations . | . . . . Recycling Units . | . . . . Scanalyzers . | . . . . Garrison Access . | . . . . Data Cores Recovered . | . . . . Used . | . . . . Hacking Detections 4 | . 4 . . Full Trace Events 1 | . 1 . . Feedback Events . | . . . . Feedback Blocked . | . . . . Robot Schematics Acquired . | . . . . Robots Built . | . . . . Authchips . | . . . . Time . | . . . . Total Robot Build Rating . | . . . . Part Schematics Acquired . | . . . . Parts Built . | . . . . Authchips . | . . . . Time . | . . . . Total Part Build Rating . | . . . . Part Studies Acquired . | . . . . Parts Repaired . | . . . . Time . | . . . . Parts Recycled 2 | . . . 2 Recycled Matter 30 | . . . 30 Retrieved Matter 30 | . . . 30 Retrieved Components . | . . . . Parts Scanalyzed . | . . . . Part Schematics Acquired . | . . . . Parts Damaged . | . . . . Bothacking | -11 -10 -10 -8 ------------ Run | Yrd Mat Sub Mat Used RIF Installer . | . . . . Robots Hacked . | . . . . Non-combat . | . . . . Combat . | . . . . Robot Hacks Applied . | . . . . Relay Couplers Released . | . . . . Fabnet Peak Effective % . | . . . . Robots Rewired . | . . . . Allies Hacked . | . . . . Hacks Repelled . | . . . . Allies | -11 -10 -10 -8 -------- Run | Yrd Mat Sub Mat Total Allies . | . . . . Largest Group . | . . . . Highest-Rated Group . | . . . . Highest-Rated Ally . | . . . . Total Orders . | . . . . Ally Attacks . | . . . . Total Damage . | . . . . Kills . | . . . . Allies Corrupted . | . . . . Allies Melted . | . . . . X0-1V1 Amusement Gains 41 | . 11 5 25 Good Acts 5 | . . 4 1 Bad Acts 4 | . . 4 . Intel | -11 -10 -10 -8 ------- Run | Yrd Mat Sub Mat Active Infowar (turns) 1228 | 72 1156 . . Seismic 1228 | 72 1156 . . Robot Analysis Total . | . . . . Derelict Logs Recovered 1 | . . 1 . Drone Launches . | . . . . Drone Recoveries . | . . . . Exploration | -11 -10 -10 -8 ------------- Run | Yrd Mat Sub Mat Turns Passed 2695 | 145 1185 819 546 Spaces Moved 1161 | 75 517 449 120 Core 181 | 24 . 37 120 Treads 760 | 51 517 192 . Legs . | . . . . Wheels 220 | . . 220 . Hover . | . . . . Flight . | . . . . Fastest Speed 50 | 50 160 115 350 Average Speed 186 | 136 160 161 427 Slowest Speed 450 | 200 160 450 450 Overloaded Moves . | . . . . Propulsion Burnouts . | . . . . Robots Hopped . | . . . . Potential Cave-ins . | . . . . Cave-ins Triggered . | . . . . Exploration Rate (%) 28 | 4 75 22 14 Regions Visited 3 Branch Regions 1 Pre-discovered Areas 1 | . . 1 . Known Exits Taken . | . . . . Unknown Exits Taken 3 | 1 1 1 . Scrap Searched 1 | . . 1 . Spaces Dug 5 | . . 5 . Terrain Destroyed 121 | . . 97 24 Melee . | . . . . Projectile 1 | . . 1 . AOE 120 | . . 96 24 Terrain Rammed . | . . . . Walls Destroyed . | . . . . Machines Disabled . | . . . . Actions | -11 -10 -10 -8 --------- Run | Yrd Mat Sub Mat Total 1478 | 95 756 489 138 Wait 157 | . 157 . . Move 1158 | 74 516 448 120 Hop . | . . . . Pick Up 12 | 3 6 1 2 Fast Attach 13 | 7 2 3 1 Attach 6 | . 2 2 2 Detach 1 | . . . 1 Swap 8 | . 6 2 . Drop 2 | . 2 . . Fire 118 | 11 65 33 9 Melee . | . . . . Ram 3 | . . . 3 Kick . | . . . . Crush . | . . . . Escape Stasis . | . . . . Rewire . | . . . . Trap . | . . . . Miscellaneous . | . . . . Route ------- -11/Scrapyard -10/Materials (discovered 4 exits: [*Mat] / [*Min x2] / *Sub) -10/Subcaves (discovered 2 exits: *Mat x2) -8/Materials History --------- Turn | Location | Event 16 | -11/Scrapyard | Discovered new exit (range 15) 146 | -11/Scrapyard | Entered Materials 280 | -10/Materials | Discovered new exit (range 12) 318 | -10/Materials | Build established: Mutant 544 | -10/Materials | Discovered new exit (range 5) 682 | -10/Materials | Discovered new exit (range 15) 689 | -10/Materials | Lost 3 parts (1p1n1w) 1099 | -10/Materials | Core integrity fell below 50% 1278 | -10/Materials | Discovered new exit (range 5) 1301 | -10/Materials | Prayed at D.C.S.S. Altar Unit 1331 | -10/Materials | Entered Subcaves 1332 | -10/Subcaves | Approached by a straggling Scientist 1420 | -10/Subcaves | Discovered new exit (range 5) 1468 | -10/Subcaves | KI resistance permanently improved by X0-1V1 (+10%) 1592 | -10/Subcaves | Core integrity restored by X0-1V1 (+22) 1676 | -10/Subcaves | Ambushed by Subdweller buried in earth 1682 | -10/Subcaves | Ambushed by Subdweller buried in earth 1730 | -10/Subcaves | Lost 4 parts (2n2w) 1744 | -10/Subcaves | Shifting Twisted Machinery released Sub. Monowheel 1748 | -10/Subcaves | Shifting Twisted Machinery released Barrage Gun 1883 | -10/Subcaves | Discovered new exit (range 10) 1971 | -10/Subcaves | A Subdweller sparked back to life 1971 | -10/Subcaves | A Subdweller sparked back to life 1971 | -10/Subcaves | A Subdweller sparked back to life 1987 | -10/Subcaves | Core integrity fell below 20% 1988 | -10/Subcaves | X0-1V1 rescued you from certain death 2013 | -10/Subcaves | Lost 3 parts (1n2w) 2105 | -10/Subcaves | Visited Clippyterm 2119 | -10/Subcaves | Learned Factory garrison access intel 2119 | -10/Subcaves | Learned Research machine intel 2150 | -10/Subcaves | Entered Materials 2150 | -8/Materials | Evolved 4 slots: Utility x2, Weapon x2 2588 | -8/Materials | Core integrity fell below 50% 2595 | -8/Materials | X0-1V1 downgraded hostiles (x3) 2599 | -8/Materials | Core integrity fell below 20% 2613 | -8/Materials | X0-1V1 rescued you from certain death 2696 | -8/Materials | Destroyed by G-47 Trooper with Particle Gun Last Messages --------------- Matter reserves: 0 Inventory: Empty >>Recycle(Lgt. Assault Rifle) Accepting Lgt. Assault Rifle... >>Recycle(Field Recycling Unit) Accepting Field Recycling Unit... >>Recycling(Process) Analyzing inventory... Recycling at 100% efficiency: Lgt. Assault Rifle (0) Field Recycling Unit (30) >>Retrieve(Matter) Matter ejected: 30 02680_ T-07 Excavator sends out distress signal. 02681_ G-34 Mercenary destroyed. 02684_ The unstable cave ceiling collapses. 02688_ Critical hit (Burn: +37). 02689_ Rocket Launcher destroyed. 02695_ Acquired 23 matter. 02696_ X0-1V1 bursts into laughter! Map ----- +----------------------------------------------------+ | # #??# #??# #????????????????????????? | | # #??# #??# """ #????????????????????????? | | # #### #### """ #????????????????????????? | | # / + """ + ?????????????????????? | | # ##### # # ??????????????????????? | | # ## ########????????????????????????? | | # ## ???????????????????????? | | # ## [ ############## ????????????????????? | | ######## ##?????????????????????????????????????? | | ???????# #??#########???????????????????????????? | | ????#### #### #???????????????????????????? | | ????# + !#???????????????????????????? | | ????# ### # #???????????????????????????? | | ????#???# # #?###???????????????????????? | | ?####+### # #? ???????????????????????? | | ?#! # + [ #? #??????????????????????? | | ?# # # #? +??????????????????????? | | ?# """ + # #?? #????#?????????????????? | | ?# """ # # #?? #??? #?????????????????? | | ?# """ # # #?? #?## ###???????????????? | | ?# # # #?? #? gw #???????????????? | | ?######## ############ ## #???????????????? | | ?# [ # #???????# Y +???????????????? | | ?# # #???????# g #???????????????? | | ?# + #????????# #???????????????? | | ?# """ # ########## @ ##+###???????????????? | | ?# """ # # # #???????????????? | | ?# """ # # !!! !# #!! #???????????????? | | ?######## # !!! # "" #?! #???????????????? | | ????????# # !! ##"Y #?? #???????????????? | | ????????# # ##"" !#???? #???????????????? | | ????????# + ## #?????#???????????????? | | ????????# # ##! #?????????????????????? | | ????????# # """ #######?????????????????????? | | ????????# # """ #???????????????????????????? | | ????????##### """ ! #???????????????????????????? | | ????????????# #???????????????????????????? | | ????????????#########???????????????????????????? | | ????????????????????????????????????????????????? | | ????????????????????????????????????????????????? | | ????????????????????????????????????????????????? | | ????????????????????????????????????????????????? | | ????????????????????????????????????????????????? | | ????????????????????????????????????????????????? | | ????????????????????????????????????????????????? | | | | | | | | | | | +----------------------------------------------------+ Best States ------------- Heat Dissipation 31 Energy Generation 10 Energy Capacity 900 Matter Stores 300 Matter Capacity 300 Sight Range 16 Terrain Scan Density 10 Resistance: KI 10 Evasion (%) 50 Targeting Accuracy 5 Recoil Reduction 2 Item Schematics ----------------- None Robot Schematics ------------------ None Fabricated ------------ Nothing Repaired ---------- Nothing Studied --------- None Alien Tech Used ----------------- None Achievements -------------- None Challenges ------------ None Game ------ Seed FortressPotentialBallwheel Manual? 0 Play Time 00:13:54 Cumulative 99.2 hours Start 2026.06.23 @ 02:53:56 End 2026.06.23 @ 03:06:05 Sessions 1 Manual Loads 0 Difficulty Rogue Special Mode None Game No. 217 Rogue 217 Adventurer 0 Explorer 0 Win Type - Total 0 Types 0/0/0/0/0/0/0/0/0/0 Lore% 48 Gallery% 48 Achievement% 38 Wizard Run 0 Options --------- Layout 1 ASCII 0 Keyboard 1 Movement Arrows Keybinds 0 Fullscreen 2 Font 24/Smallcaps Map View 50x35 Zoom Use 0% Tactical HUD 1 Map Filters NONE Filters NONE Steam 1 RUN: cde15316-8265-4cbf-bfa0-3c37837c1c7d